bitfinex-derivatives/quotes_SOLF0:USTF0_20240904
["timestamp","ask_amount","ask_price","bid_price","bid_amount"]
[1725452089355,0.0561213,128.16,128.13,3.9517787]
[1725452089864,3.9581213,128.16,128.13,3.9517787]
[1725452090358,0.0561213,128.16,128.14,3.9025]
[1725452091255,3.9580213,128.16,128.13,3.9518787]
[1725452091461,0.0561213,128.16,128.13,0.0491787]
[1725452091660,0.0561213,128.16,128.15,23.87]
[1725452091854,0.0561213,128.16,128.15,27.7722]
[1725452092057,5.39149961,128.23,128.15,23.87]
[1725452092263,5.39149961,128.23,128.17,23.87]
[1725452092458,5.39149961,128.23,128.18,3.9012]
[1725452093053,3.95592965,128.22,128.19,0.05122313]
[1725452093260,0.05562965,128.22,128.19,0.05122313]
[1725452093655,0.05562965,128.22,128.2,7.86703909]
[1725452093854,0.05562965,128.22,128.19,0.05122313]
[1725452094462,0.05562965,128.22,128.19,3.85777392]
[1725452094862,0.05562965,128.22,128.19,7.75867392]
[1725452096863,0.05562965,128.22,128.2,3.9007]
[1725452098167,0.05562965,128.22,128.21,3.9004]
[1725452100360,0.05562965,128.22,128.19,3.85777392]
[1725452100560,0.05562965,128.22,128.19,0.05122313]
[1725452101470,3.9007,128.2,128.19,0.05122313]
[1725452105867,23.87,128.2,128.11,23.87]
[1725452106068,23.87,128.19,128.09,2.7041]
[1725452106262,3.9027,128.14,128.1,3.9035]
[1725452106468,3.93155958,128.17,128.09,26.5741]
[1725452106676,0.05309719,128.14,128.12,0.05157447]
[1725452108271,3.95569719,128.14,128.12,0.05157447]
[1725452109569,0.05309719,128.14,128.12,0.05157447]
[1725452109770,0.05309719,128.14,128.13,23.87]
[1725452110176,0.05309719,128.14,128.13,27.7728]
[1725452111374,1.4428,128.23,128.13,27.7728]
[1725452111375,1.4428,128.23,128.17,3.9014]
[1725452111671,1.4428,128.23,128.17,23.87]
[1725452111877,23.87,128.26,128.18,3.9012]
[1725452112174,23.87,128.24,128.16,23.87]
[1725452112383,0.05631687,128.21,128.19,0.058718]
[1725452112977,3.9008,128.2,128.19,0.058718]
[1725452113974,0.05631687,128.21,128.19,0.058718]
[1725452113975,3.95691687,128.21,128.19,0.058718]
[1725452114477,0.05631687,128.21,128.2,3.9007]
[1725452114965,0.05631687,128.21,128.19,27.829518]
[1725452115568,0.05631687,128.21,128.19,23.928718]
[1725452116478,0.05631687,128.21,128.2,3.9007]
[1725452116675,0.05631687,128.21,128.2,27.7707]
[1725452117371,1.3838,128.3,128.2,23.87]
[1725452117577,0.41052528,128.29,128.23,23.87]
[1725452117778,3.8988,128.27,128.23,27.7696]
[1725452118167,2.7099,128.3,128.23,23.87]
[1725452118375,0.05874932,128.28,128.25,0.05209655]
[1725452118569,0.05680237,128.28,128.25,0.05687527]
[1725452118769,0.05680237,128.28,128.26,23.87]
[1725452118972,0.05680237,128.28,128.26,7.73782626]
[1725452119186,0.05680237,128.28,128.26,3.83912626]
[1725452119371,0.05680237,128.28,128.25,3.95587527]
[1725452119882,0.05680237,128.28,128.26,3.90760397]
[1725452120178,0.05680237,128.28,128.25,3.95587527]
[1725452120582,0.05680237,128.28,128.26,7.83642947]
[1725452120780,0.05680237,128.28,128.26,3.8988]
[1725452120978,0.05680237,128.28,128.26,27.86066152]
[1725452121177,0.05680237,128.28,128.27,3.8986]
[1725452121975,0.05680237,128.28,128.27,7.70442923]
[1725452122480,0.40999067,128.34,128.27,3.80582923]
[1725452122682,1.357,128.35,128.28,23.87]
[1725452122880,3.8968,128.33,128.28,23.87]
[1725452123181,1.357,128.35,128.28,23.87]
[1725452123377,3.8969,128.33,128.28,23.87]
[1725452123681,0.05220541,128.32,128.29,0.0577599]
[1725452124470,0.05220541,128.32,128.29,3.9555599]
[1725452124681,0.05220541,128.32,128.29,0.0577599]
[1725452125484,3.8976,128.31,128.29,0.0577599]
[1725452125881,3.8977,128.3,128.29,0.0577599]
[1725452126279,3.8977,128.3,128.24,3.83244308]
[1725452126477,23.87,128.3,128.24,3.83244308]
[1725452126778,23.87,128.32,128.25,3.899]
[1725452127282,23.87,128.32,128.23,23.87]
[1725452127473,0.05384071,128.29,128.26,0.05423793]
[1725452127677,3.8986,128.27,128.26,0.05905567]
[1725452127977,0.05384071,128.29,128.26,0.05905567]
[1725452128177,3.8984,128.28,128.26,0.05905567]
[1725452128383,0.05384071,128.29,128.26,0.05905567]
[1725452128884,3.8986,128.27,128.26,0.05905567]
[1725452129182,0.05384071,128.29,128.26,0.05905567]
[1725452129374,3.95194071,128.29,128.26,0.05905567]
[1725452130377,0.05384071,128.29,128.26,0.05905567]
[1725452130976,0.05384071,128.29,128.27,3.8985]
[1725452132081,0.05384071,128.29,128.28,3.8983]
[1725452133591,0.05384071,128.29,128.28,27.7683]
[1725452134483,0.05384071,128.29,128.28,3.8983]
[1725452135188,0.05384071,128.29,128.27,27.7684]
[1725452136777,0.05384071,128.29,128.27,23.87]
[1725452137084,0.05384071,128.29,128.28,27.7683]
[1725452137587,1.3336,128.34,128.28,27.7683]
[1725452137588,1.3336,128.34,128.29,3.8977]
[1725452137785,1.3336,128.34,128.3,23.87]
[1725452138182,3.8969,128.33,128.3,23.87]
[1725452138380,1.3336,128.34,128.3,3.81382174]
[1725452138580,0.05606665,128.33,128.3,3.86447166]
[1725452139690,3.95296665,128.33,128.3,3.86447166]
[1725452140090,3.95296665,128.33,128.3,7.76207166]
[1725452140390,0.05606665,128.33,128.3,3.86447166]
[1725452140787,0.05606665,128.33,128.3,7.76187166]
[1725452140989,0.05606665,128.33,128.3,3.86447166]
[1725452141488,3.95286665,128.33,128.3,7.76197166]
[1725452142490,0.05606665,128.33,128.3,3.86447166]
[1725452143099,0.05606665,128.33,128.3,7.76197166]
[1725452143991,0.05606665,128.33,128.3,0.05064992]
[1725452144696,3.8973,128.31,128.3,0.05064992]
[1725452144895,23.87,128.32,128.23,23.87]
[1725452145199,3.8984,128.28,128.23,23.87]
[1725452146001,0.05761222,128.27,128.24,0.05556324]
[1725452146399,0.05761222,128.27,128.25,23.87]
[1725452146994,1.3502,128.33,128.25,23.87]
[1725452147193,1.413,128.34,128.29,23.87]
[1725452147395,3.8969,128.33,128.3,7.73831497]
[1725452147997,0.05362747,128.33,128.3,7.79548604]
[1725452149894,0.05362747,128.33,128.31,23.87]
[1725452151503,0.05362747,128.33,128.32,23.87]
[1725452152392,0.05362747,128.33,128.32,27.767]
[1725452153996,0.05362747,128.33,128.32,23.87]
[1725452154501,0.05362747,128.33,128.32,27.767]
[1725452159211,0.05362747,128.33,128.31,27.7672]
[1725452159608,0.05362747,128.33,128.3,3.89788604]
[1725452159803,3.95052747,128.33,128.3,7.79538604]
[1725452160505,0.05362747,128.33,128.3,0.05717107]
[1725452160913,3.8973,128.31,128.3,0.05717107]
[1725452162102,3.8972,128.32,128.3,0.05717107]
[1725452162303,0.05362747,128.33,128.3,0.05717107]
[1725452162509,43.3315,128.48,128.3,0.05717107]
[1725452162510,3.8957,128.37,128.31,23.87]
[1725452162706,1.3211,128.38,128.35,23.87]
[1725452163211,3.8954,128.38,128.35,23.87]
[1725452163413,2.7751,128.41,128.35,27.766]
[1725452163807,3.95129792,128.39,128.37,0.04933404]
[1725452164113,0.05609792,128.39,128.37,0.04933404]
[1725452164708,3.8952,128.38,128.37,0.04933404]
[1725452166506,3.95109792,128.39,128.37,0.04933404]
[1725452167112,3.8952,128.38,128.37,0.04933404]
[1725452168510,3.95119792,128.39,128.37,0.04933404]
[1725452168709,0.05609792,128.39,128.37,0.04933404]
[1725452168905,0.05609792,128.39,128.3,2.8557]
[1725452168906,3.90408438,128.38,128.32,23.87]
[1725452169109,5.23438438,128.38,128.32,23.87]
[1725452169713,5.23438438,128.38,128.33,3.8966]
[1725452169915,0.050928,128.37,128.34,23.92029585]
[1725452170121,0.4094542,128.4,128.36,23.87]
[1725452170311,0.4094542,128.4,128.39,27.7649]
[1725452171009,0.4094542,128.4,128.39,23.87]
[1725452171617,3.95228774,128.41,128.39,23.87]
[1725452171814,0.05798774,128.41,128.39,27.7649]
[1725452172316,0.05798774,128.41,128.4,3.8946]
[1725452172820,0.05798774,128.41,128.39,27.7648]
[1725452175323,0.05798774,128.41,128.38,3.94834385]
[1725452176217,0.05798774,128.41,128.39,23.87]
[1725452176418,0.05798774,128.41,128.39,27.7648]
[1725452178120,0.05798774,128.41,128.38,0.05324385]
[1725452178621,3.8949,128.4,128.38,0.05324385]
[1725452179217,0.05798774,128.41,128.38,3.94834385]
[1725452179522,0.05798774,128.41,128.38,0.05324385]
[1725452179716,3.8949,128.39,128.38,0.05324385]
[1725452180324,3.8947,128.4,128.38,0.05324385]
[1725452184817,3.8949,128.39,128.38,0.05324385]
[1725452189928,3.8947,128.4,128.38,0.05324385]
[1725452191330,0.05798774,128.41,128.39,9.58]
[1725452191627,0.05798774,128.41,128.4,9.58]
[1725452191828,0.05798774,128.41,128.4,13.4746]
[1725452192024,0.05798774,128.41,128.4,3.8946]
[1725452192226,3.8927,128.47,128.4,23.93]
[1725452192433,3.8927,128.47,128.44,23.93]
[1725452192930,3.8923,128.48,128.44,27.8232]
[1725452193228,0.0570212,128.47,128.45,0.05203659]
[1725452193425,0.0570212,128.47,128.45,3.94503659]
[1725452193926,0.0570212,128.47,128.45,0.05203659]
[1725452194522,3.8932,128.45,128.41,3.8941]
[1725452195426,0.04968111,128.44,128.42,0.05366821]
[1725452196335,0.04968111,128.44,128.42,23.98366821]
[1725452197927,0.04968111,128.44,128.43,3.8937]
[1725452202229,3.892,128.49,128.45,3.893]
[1725452202431,3.892,128.49,128.45,27.823]
[1725452203232,0.05149795,128.48,128.46,0.05531733]
[1725452204039,3.8925,128.47,128.46,0.05531733]
[1725452206644,0.05149795,128.48,128.41,23.93]
[1725452206838,23.93,128.49,128.41,23.93]
[1725452206839,23.93,128.49,128.42,3.894]
[1725452207036,23.93,128.49,128.41,23.93]
[1725452207340,28.1016,128.5,128.41,23.93]
[1725452207642,0.05002427,128.47,128.44,0.05361147]
[1725452207837,3.893,128.46,128.44,0.05361147]
[1725452208838,3.94252427,128.47,128.44,0.05361147]
[1725452209038,0.05002427,128.47,128.44,0.05361147]
[1725452209340,3.8929,128.46,128.44,0.05361147]
[1725452209940,3.8931,128.45,128.44,0.05361147]
[1725452211540,0.05002427,128.47,128.44,0.05361147]
[1725452211745,0.05002427,128.47,128.45,23.93]
[1725452212741,0.05002427,128.47,128.45,27.8229]
[1725452216649,0.05002427,128.47,128.46,27.8228]
[1725452218249,2.7877,128.53,128.47,3.8925]
[1725452218445,3.88585954,128.52,128.47,7.85350692]
[1725452218852,3.8916,128.51,128.47,7.85350692]
[1725452219249,3.8916,128.51,128.48,0.05555094]
[1725452219550,0.0589377,128.5,128.48,0.05555094]
[1725452220047,23.9889377,128.5,128.48,0.05555094]
[1725452220245,23.9889377,128.5,128.42,1.433]
[1725452220454,23.93,128.5,128.41,23.93]
[1725452220753,23.93,128.49,128.41,23.93]
[1725452221046,3.8932,128.45,128.42,3.8939]
[1725452221352,3.94522129,128.45,128.42,3.94420019]
[1725452222246,3.94522129,128.45,128.42,0.05030019]
[1725452222447,0.05202129,128.45,128.42,0.05030019]
[1725452222849,3.8937,128.43,128.42,0.05030019]
[1725452223451,3.8944,128.41,128.38,3.8951]
[1725452223653,23.93,128.45,128.36,23.93]
[1725452223954,23.93,128.45,128.37,3.97548341]
[1725452224357,3.8942,128.42,128.38,3.8949]
[1725452224649,0.05328274,128.41,128.39,0.05064601]
[1725452225452,0.05328274,128.41,128.39,3.94554601]
[1725452225651,0.05328274,128.41,128.4,23.93]
[1725452226653,0.05328274,128.41,128.39,3.94544601]
[1725452226853,0.05328274,128.41,128.39,0.05064601]
[1725452227659,0.05328274,128.41,128.39,3.94534601]
[1725452227853,0.05328274,128.41,128.39,0.05064601]
[1725452228755,3.94758274,128.41,128.39,0.05064601]
[1725452229958,0.05328274,128.41,128.39,0.05064601]
[1725452230465,0.05328274,128.41,128.39,3.94554601]
[1725452230755,0.05328274,128.41,128.39,0.05064601]
[1725452230947,31.724,128.49,128.4,23.93]
[1725452231150,31.724,128.49,128.42,23.93]
[1725452231151,1.4541,128.49,128.42,23.93]
[1725452231551,1.4541,128.49,128.44,3.8932]
[1725452231860,1.4541,128.49,128.44,23.93]
[1725452232154,0.05060269,128.48,128.45,0.05640715]
[1725452232459,0.05060269,128.48,128.45,23.98640715]
[1725452233464,0.05060269,128.48,128.46,3.8927]
[1725452233957,0.05060269,128.48,128.47,3.8925]
[1725452236065,0.05060269,128.48,128.46,3.8926]
[1725452236863,0.05060269,128.48,128.47,3.8925]
[1725452238355,0.05060269,128.48,128.47,27.8225]
[1725452240159,21.8054495,128.56,128.47,23.93]
[1725452240360,4.1789,128.59,128.51,23.93]
[1725452240564,0.40890682,128.58,128.51,23.93]
[1725452240953,3.8896,128.57,128.53,3.8905]
[1725452241152,0.04942523,128.56,128.54,0.0598655]
[1725452243465,0.04942523,128.56,128.54,3.9502655]
[1725452243966,0.04942523,128.56,128.54,0.0598655]
[1725452244969,3.8901,128.55,128.54,0.0598655]
[1725452248569,3.93942523,128.56,128.54,0.0598655]
[1725452248878,0.04942523,128.56,128.54,0.0598655]
[1725452249176,0.04942523,128.56,128.5,3.8914]
[1725452249177,23.97942523,128.56,128.5,3.8914]
[1725452249372,23.93,128.56,128.47,23.93]
[1725452249769,3.8914,128.51,128.48,3.892]
[1725452250175,3.94488182,128.51,128.48,3.94805253]
[1725452250573,3.94488182,128.51,128.49,3.8919]
[1725452252279,3.94488182,128.51,128.48,3.94805253]
[1725452252474,0.05348182,128.51,128.48,0.05605253]
[1725452252874,0.05348182,128.51,128.48,3.94825253]
[1725452254279,0.05348182,128.51,128.48,0.05605253]
[1725452255080,0.05348182,128.51,128.49,3.8918]
[1725452255288,0.05348182,128.51,128.48,0.05605253]
[1725452255589,3.94498182,128.51,128.48,3.94805253]
[1725452256378,3.8916,128.5,128.48,0.05605253]
[1725452257781,7.78848083,128.51,128.48,0.05605253]
[1725452258179,7.78848083,128.51,128.48,3.94815253]
[1725452258383,0.05348182,128.51,128.48,3.94815253]
[1725452261590,0.05348182,128.51,128.49,3.8918]
[1725452261789,0.05348182,128.51,128.48,0.05605253]
[1725452262586,0.05348182,128.51,128.49,3.8917]
[1725452265690,0.05348182,128.51,128.48,0.05605253]
[1725452265691,3.94478182,128.51,128.48,3.94795253]
[1725452266092,7.81757864,128.51,128.48,3.94795253]
[1725452269788,7.81757864,128.51,128.49,3.8919]
[1725452270294,3.94478182,128.51,128.49,3.8919]
[1725452270496,7.81952516,128.51,128.49,3.8919]
[1725452270695,3.92822516,128.51,128.49,3.8919]
[1725452271794,0.05348182,128.51,128.48,0.05605253]
[1725452271991,1.3478,128.57,128.5,9.57]
[1725452272191,3.93936322,128.56,128.53,9.57]
[1725452272397,7.82936322,128.56,128.53,13.4606]
[1725452272897,3.8901,128.55,128.52,3.8908]
[1725452273092,3.8901,128.55,128.52,13.4608]
[1725452273297,3.94815623,128.55,128.52,13.51262171]
[1725452273698,3.8904,128.54,128.52,0.05182171]
[1725452274094,0.05805623,128.55,128.52,0.05182171]
[1725452274095,23.98805623,128.55,128.52,0.05182171]
[1725452274303,3.8907,128.53,128.52,0.05182171]
[1725452275791,23.93,128.53,128.45,23.93]
[1725452276004,1.3447,128.52,128.45,23.93]
[1725452276302,3.8919,128.5,128.47,3.8925]
[1725452276808,0.05966869,128.5,128.47,3.94906544]
[1725452276990,3.8921,128.49,128.47,0.05656544]
[1725452277901,3.8922,128.48,128.47,0.05656544]
[1725452281995,3.8922,128.48,128.41,30.5751]
[1725452282201,3.8922,128.48,128.37,1.4355]
[1725452282202,23.93,128.47,128.38,23.93]
[1725452282501,26.6947,128.47,128.4,3.8945]
[1725452282809,3.894,128.43,128.4,3.8945]
[1725452283107,3.95260153,128.43,128.4,3.95157352]
[1725452284504,0.05860153,128.43,128.41,3.8943]
[1725452285700,0.05860153,128.43,128.42,3.894]
[1725452290314,0.05860153,128.43,128.41,27.8241]
[1725452291514,0.05860153,128.43,128.41,3.8941]
[1725452292310,3.95230153,128.43,128.4,3.95157352]
[1725452294812,0.05860153,128.43,128.41,3.8942]
[1725452295016,0.05860153,128.43,128.4,0.05707352]
[1725452295517,0.05860153,128.43,128.4,3.95157352]
[1725452296710,3.95240153,128.43,128.4,3.95157352]
[1725452297312,3.95240153,128.43,128.41,3.8943]
[1725452297513,0.05860153,128.43,128.41,3.8943]
[1725452297713,0.05860153,128.43,128.4,0.05707352]
[1725452298119,3.95230153,128.43,128.4,3.95147352]
[1725452298319,0.05860153,128.43,128.41,23.93]
[1725452298523,0.05860153,128.43,128.42,3.894]
[1725452298721,25.2972,128.51,128.44,23.93]
[1725452299425,1.3672,128.51,128.44,23.93]
[1725452299726,0.05183742,128.48,128.46,0.05064182]
[1725452299925,0.05183742,128.48,128.47,7.86803502]
[1725452301524,0.05183742,128.48,128.47,31.79803502]
[1725452301723,31.724,128.56,128.49,3.8917]
[1725452301926,0.81590194,128.55,128.49,3.8917]
[1725452302128,4.26248647,128.55,128.49,3.8917]
[1725452302329,3.8911,128.52,128.48,3.8921]
[1725452302534,3.91528013,128.52,128.48,3.8921]
[1725452302830,0.05880186,128.51,128.49,0.0498692]
[1725452303531,3.95030186,128.51,128.49,0.0498692]
[1725452306835,0.05880186,128.51,128.49,3.9416692]
[1725452307236,0.05880186,128.51,128.49,0.0498692]
[1725452307532,3.95020186,128.51,128.49,0.0498692]
[1725452308627,0.05880186,128.51,128.49,3.9416692]
[1725452309827,0.05880186,128.51,128.5,3.8916]
[1725452310023,0.05880186,128.51,128.5,27.8216]
[1725452311536,0.05880186,128.51,128.49,0.0498692]
[1725452312033,3.8916,128.5,128.49,0.0498692]
[1725452315137,3.8933,128.45,128.42,23.93]
[1725452315335,3.8933,128.45,128.42,27.84786936]
[1725452315632,3.8933,128.45,128.43,3.8936]
[1725452316143,3.95001744,128.45,128.43,0.05896451]
[1725452316838,3.95001744,128.45,128.43,3.95266451]
[1725452318737,3.95001744,128.45,128.43,0.05896451]
[1725452319643,0.05671744,128.45,128.43,0.05896451]
[1725452321043,3.95001744,128.45,128.43,0.05896451]
[1725452322747,0.05671744,128.45,128.44,23.93]
[1725452323039,4.2085,128.51,128.44,23.93]
[1725452323245,3.8921,128.49,128.46,23.93]
[1725452324145,3.94361073,128.49,128.46,23.98278645]
[1725452326847,3.8922,128.48,128.46,23.98278645]
[1725452328342,3.8925,128.47,128.46,0.05278645]
[1725452335055,3.8923,128.48,128.46,0.05278645]
[1725452335754,3.8925,128.47,128.46,0.05278645]
[1725452337251,7.82110274,128.47,128.46,0.05278645]
[1725452337457,3.8925,128.47,128.46,0.05278645]
[1725452337960,7.71169368,128.47,128.46,0.05278645]
[1725452339662,3.81919368,128.47,128.4,3.8945]
[1725452339958,23.93,128.48,128.39,25.2618]
[1725452340258,3.8939,128.43,128.4,3.8945]
[1725452340452,3.89814713,128.43,128.4,3.8945]
[1725452340654,3.94937209,128.43,128.4,3.95420208]
[1725452340863,0.05547209,128.43,128.41,3.83156206]
[1725452341257,0.05547209,128.43,128.42,3.894]
[1725452341458,0.05547209,128.43,128.42,27.824]
[1725452341661,1.455,128.5,128.42,23.93]
[1725452341963,1.455,128.5,128.44,3.8933]
[1725452341964,3.8927,128.47,128.44,3.8933]
[1725452342656,3.94546411,128.47,128.44,7.8260566]
[1725452344756,0.05276411,128.47,128.44,3.9327566]
[1725452344960,0.05276411,128.47,128.45,23.93]
[1725452345263,0.05276411,128.47,128.46,3.8928]
[1725452345965,23.22513307,128.53,128.46,23.93]
[1725452346156,21.80733307,128.53,128.49,23.93]
[1725452346561,3.8909,128.53,128.49,23.93]
[1725452347266,3.95028112,128.52,128.5,0.05816213]
[1725452351767,0.05928112,128.52,128.5,3.94956213]
[1725452351968,0.05928112,128.52,128.5,0.05816213]
[1725452352364,0.05928112,128.52,128.51,7.72953927]
[1725452352572,0.05928112,128.52,128.51,3.8913]
[1725452352867,3.95038112,128.52,128.5,0.05816213]
[1725452354170,0.05928112,128.52,128.5,3.94966213]
[1725452355475,0.05928112,128.52,128.51,3.8913]
[1725452355771,0.05928112,128.52,128.51,7.69139044]
[1725452356970,0.05928112,128.52,128.51,3.8913]
[1725452357371,0.05928112,128.52,128.5,0.05816213]
[1725452357874,3.95048112,128.52,128.5,0.05816213]
[1725452359478,3.95048112,128.52,128.5,3.94976213]
[1725452359775,0.05928112,128.52,128.5,0.05816213]
[1725452360170,0.05928112,128.52,128.5,3.94956213]
[1725452360371,3.95028112,128.52,128.5,3.94956213]
[1725452360575,0.05928112,128.52,128.5,0.05816213]
[1725452360867,3.8918,128.5,128.44,23.93]
[1725452361065,5.31483727,128.52,128.46,3.8926]
[1725452361267,1.3416,128.52,128.46,3.8926]
[1725452361468,3.8918,128.5,128.44,27.78839257]
[1725452361870,0.05130897,128.48,128.47,3.8925]
[1725452362975,0.05130897,128.48,128.46,3.95036022]
[1725452367179,0.05130897,128.48,128.47,3.8925]
[1725452367580,0.05130897,128.48,128.46,3.95026022]
[1725452368979,0.05130897,128.48,128.46,0.05766022]
[1725452369575,3.8925,128.47,128.46,0.05766022]
[1725452372384,0.05130897,128.48,128.46,0.05766022]
[1725452373173,3.94360897,128.48,128.46,0.05766022]
[1725452373986,3.8925,128.47,128.46,0.05766022]
[1725452374788,0.05130897,128.48,128.46,3.95046022]
[1725452375982,0.05130897,128.48,128.47,3.8925]
[1725452386000,0.05130897,128.48,128.47,13.4625]
[1725452389197,0.05130897,128.48,128.47,3.8925]
[1725452396714,9.62130897,128.48,128.46,0.05766022]
[1725452397706,3.8925,128.47,128.46,0.05766022]
[1725452398602,9.62130897,128.48,128.28,8.20572922]
[1725452398806,9.57,128.45,128.39,9.57]
[1725452399006,9.57,128.45,128.41,3.8941]
[1725452399616,0.05097274,128.44,128.42,0.05954168]
[1725452399914,3.94437274,128.44,128.42,0.05954168]
[1725452400718,7.81118956,128.44,128.42,0.05954168]
[1725452400908,3.8937,128.43,128.42,0.05954168]
[1725452401807,7.81138956,128.44,128.42,0.05954168]
[1725452402010,3.94457274,128.44,128.42,0.05954168]
[1725452402211,0.05097274,128.44,128.42,0.05954168]
[1725452402625,0.05097274,128.44,128.43,9.57]
[1725452403020,0.05097274,128.44,128.43,13.4637]
[1725452404015,0.05097274,128.44,128.43,3.8937]
[1725452404516,0.05097274,128.44,128.42,0.05954168]
[1725452405610,4.00705711,128.44,128.42,0.05954168]
[1725452406720,7.90055711,128.44,128.42,0.05954168]
[1725452406929,4.00705711,128.44,128.42,0.05954168]
[1725452407520,0.05097274,128.44,128.42,3.95354168]
[1725452408414,0.05097274,128.44,128.43,3.8937]
[1725452408610,0.05097274,128.44,128.43,27.8037]
[1725452414625,1.4025,128.5,128.46,3.8926]
[1725452414926,5.20495137,128.5,128.46,3.8926]
[1725452415125,7.794,128.56,128.47,3.82892758]
[1725452415421,1.3868,128.54,128.43,1.3201]
[1725452415627,0.05091286,128.5,128.49,3.8918]
[1725452415821,0.05821767,128.51,128.49,3.8918]
[1725452418823,0.05821767,128.51,128.5,3.8916]
[1725452421230,0.05821767,128.51,128.44,6.73690194]
[1725452421926,0.05821767,128.51,128.44,10.68210414]
[1725452422332,0.05821767,128.51,128.46,0.05322641]
[1725452423327,0.05821767,128.51,128.5,3.8916]
[1725452431135,75.96786718,128.62,128.48,2.8159]
[1725452431335,1.81636843,128.61,128.49,1.3741]
[1725452431534,3.17986843,128.61,128.49,1.3741]
[1725452431941,3.8895,128.57,128.49,1.3741]
[1725452432444,0.05139593,128.54,128.53,3.8907]
[1725452432628,72.09727353,128.62,128.52,0.05466331]
[1725452432629,0.05025416,128.55,128.52,0.05466331]
[1725452432828,23.22397772,128.62,128.49,1.3741]
[1725452433033,1.4208,128.62,128.51,7.7823]
[1725452433641,1.4208,128.62,128.59,3.8886]
[1725452433841,1.47837751,128.62,128.59,0.05684998]
[1725452434035,3.80046424,128.61,128.59,0.05684998]
[1725452435430,7.68876424,128.61,128.59,0.05684998]
[1725452437141,3.8886,128.6,128.59,0.05684998]
[1725452438244,7.68886424,128.61,128.59,0.05684998]
[1725452438546,3.80046424,128.61,128.59,0.05684998]
[1725452440039,3.8886,128.6,128.59,0.05684998]
[1725452441342,7.68876424,128.61,128.59,0.05684998]
[1725452441643,0.05757751,128.62,128.59,0.05684998]
[1725452441855,3.8883,128.61,128.59,0.05684998]
[1725452442261,0.05757751,128.62,128.59,0.05684998]
[1725452443050,0.05757751,128.62,128.6,3.8884]
[1725452444460,0.05757751,128.62,128.61,3.8883]
[1725452446177,2.7526,128.69,128.57,4.1746]
[1725452446455,6.6385,128.69,128.57,4.1746]
[1725452446655,6.6385,128.69,128.65,3.887]
[1725452447163,0.05628374,128.68,128.66,0.05794528]
[1725452448551,3.94258374,128.68,128.66,0.05794528]
[1725452449160,3.8864,128.67,128.66,0.05794528]
[1725452450453,3.96720858,128.67,128.57,4.1746]
[1725452450863,2.7526,128.69,128.57,4.1746]
[1725452451163,3.8872,128.65,128.61,3.8881]
[1725452451366,2.7526,128.69,128.57,4.1746]
[1725452451367,0.05411051,128.64,128.62,0.053428]
[1725452451560,3.8879,128.63,128.62,0.053428]
[1725452452365,3.94171051,128.64,128.62,0.053428]
[1725452453261,3.8877,128.63,128.62,0.053428]
[1725452457466,4.19841051,128.64,128.56,3.94989884]
[1725452457657,4.1443,128.64,128.53,2.7716]
[1725452457859,3.8884,128.61,128.57,3.8892]
[1725452458055,4.1443,128.64,128.57,3.8892]
[1725452458260,0.05102971,128.62,128.59,0.0548415]
[1725452458470,3.8887,128.6,128.59,0.0548415]
[1725452460871,3.8884,128.61,128.59,0.0548415]
[1725452461175,0.05102971,128.62,128.59,3.9436415]
[1725452461471,0.05102971,128.62,128.59,0.0548415]
[1725452461766,0.05102971,128.62,128.59,3.9435415]
[1725452461962,3.93912971,128.62,128.59,3.9435415]
[1725452462767,3.93912971,128.62,128.6,3.8886]
[1725452466264,0.05102971,128.62,128.53,2.7716]
[1725452466466,4.1443,128.64,128.53,2.7716]
[1725452466667,8.11724967,128.64,128.56,3.8896]
[1725452466864,8.11724967,128.64,128.45,79.69548678]
[1725452467063,8.20099642,128.63,128.5,6.85470249]
[1725452467264,0.0550208,128.58,128.55,0.05820787]
[1725452467471,3.9256298,128.57,128.55,0.05564942]
[1725452467976,3.8899,128.56,128.55,0.05564942]
[1725452468368,3.8895,128.57,128.55,0.05564942]
[1725452468675,0.0550208,128.58,128.55,0.05564942]
[1725452469074,3.8896,128.57,128.55,3.94554942]
[1725452469871,3.8896,128.57,128.55,0.05564942]
[1725452472386,0.0550208,128.58,128.55,0.05564942]
[1725452472673,3.83761479,128.57,128.55,0.05564942]
[1725452472878,1.3457,128.56,128.5,3.0]
[1725452473182,3.8906,128.54,128.51,3.8912]